{"text_format":"1","workbook":"xlsx","n_sheets":4,"sheets":["NAVODILA","VNOS PODATKOV","5A DZO VM","5B DZO"],"not_rendered":{"charts":0,"images":8,"macros":1,"external_links":2,"defined_names":18,"comments":0,"pivot_tables":0},"unopened":[],"bounds":{"document_bytes":16777216,"sheet_cells":100000,"rows_first":2000,"rows_last":500,"rows_between":2000,"halvings":0,"cell_chars":16384,"cell_head_chars":4096},"cells_cut":0,"cells_raw":0,"read":"whole","date_system":"1900"}

{"sheet":"NAVODILA","index":0,"n_rows":41,"n_cols":1,"rows_kept":41,"cut":false,"hidden":false,"merged":[]}
[]
["NAVODILA"]
[]
["Aplikacija za pripravo obrazcev v zvezi z graditvijo objektov je pripomoček za pripravo dokumentacije in zahtevkov v skladu z novim Pravilnikom o podrobnejši vsebini dokumentacije in obrazcih, povezanih z graditvijo objektov. Nova verzija obrazcev glede na prejšnjo uvaja nekaj sprememb, opisanih v nadaljevanju. "]
[]
["Za pravilno delovanje navigacijskih in drugih ukaznih gumbov je potrebno ob odpiranju dokumenta omogočiti uporabo makrov. Uporaba makrov je vezana izključno na delovanje navigacijskih gumbov ter za prenašanje podatkov med datotekami. Vse osnovne funkcionalnosti, torej vnos in izpis podatkov, delujejo tudi brez delovanja makrov. Namesto z uporabo navigacijskih gumbov lahko posamezne liste izbirate v spodnji vrstici aplikacije, za tiskanje in pripravo pdf dokumentov pa uporabite ustrezne ukaze iz menija."]
[]
["DATOTEKE"]
[]
["Priloge so razdeljene v več datotek. Vsaka izmed datotek je pripravljena za posamezno skupino uporabnikov (projektanti, izvajalci, mnenjedajalci, upravni organ) tako, da vključuje vse faze posameznega postopka. Sklop za projektante je dodatno razdeljen glede na zahtevnost nameravane gradnje. \nSeznam datotek:\n- projektanti - obrazci za zahtevne in manj zahtevne objekte\n- projektanti - obrazci za nezahtevne objekte\n- projektanti - obrazci za spremembo namembnosti\n- projektanti - manjša rekonstrukcija\n- projektanti - legalizacije\n- projektanti - začasni objekti\n- izvajalci - DZO\n- mnenjedajalci - projektni pogoji in mnenja\n- upravni organ - odločbe\n\nV nadaljevanju so opisana navodila za uporabo obrazcev izvajalci - DZO."]
[]
["ZAŠČITA PODATKOV"]
[]
["Vsi listi v datoteki so odklenjeni. Kljub temu priporočamo, da liste zaklenete tako, da na zavihku Pregled na traku v skupini Spremembe izberete Zaščiti list. Namen te osnovne zaščite je preprečiti nenamerno spreminjanje že izpolnjenih polj. \n\nOPOZORILO:\nPodatke lahko vnašate le v rumeno obarvana okenca, vrstice pa lahko dodajate le tam, kjer je to izrecno navedeno, sicer se podatki morda ne bodo prenesli pravilno!"]
[]
["KAZALO VSEBINE"]
[]
["List za vnos podatkov ima v zgornjem delu kazalo celotne vsebine. Vsebina je razporejena v tabelo, ki je razporejena tako kot je sestavljena vloga v posamezni fazi upravnega postopka. Naslovi delujejo kot povezave na posamezne liste."]
[]
["VNAŠANJE PODATKOV"]
[]
["Nekatere vsebine vnašamo s pomočjo spustnih menijev, pri nekaterih vsebinah pa je potrebno označiti izbiro. Pod posameznimi naslovi so opombe z dodatnimi navodili za izpolnjevanje, stolpec A na listu vnos podatkov je namenjen internim opombam uporabnika."]
[]
["PRENAŠANJE PODATKOV MED DATOTEKAMI"]
[]
["Aplikacija omogoča prenos podatkov iz datoteke projektanta. Če želimo prenesti podatke, lahko to storimo s pomočjo ustreznega gumba na listu vnos podatkov. Pred prenosom morata biti izvorna in ciljna datoteka odprti. \n\nPoleg gumba za prenos podatkov je na voljo tudi gumb Počisti vnosna polja, s katerim izbrišemo vse vnešene vsebine z lista vnos podatkov, ne pa tudi vsebin, ki se vnašajo direktno v posamezne obrazce."]
[]
["PRILAGAJANJE VIŠINE VRSTIC"]
[]
["Različne verzije programa na različne načine prikazujejo višino in širino celic, zato se lahko zgodi, da vsebina posameznih polj ni v celoti vidna. V tem primeru lahko višino celice spremenite tako, da v meniju Osnovno v skupini Poravnava izberete Prelomi besedilo, oziroma ročno spremenite višino vrstice tako, da najprej izberite celotno vrstico v stolpcu z oznakami vrstic (sivi stolpec s številkami vrstic na skrajni levi strani), na zavihku Osnovno v skupini Celice kliknite Oblika, nato pa v razdelku Velikost celice kliknite Samodejno prilagodi višino vrstice oziroma vpišete željeno višino vrstice. Enako velja za prilagajanje širine stolpcev."]
[]
["TISKANJE IN SHRANJEVANJE"]
[]
["Po končanem vnosu podatkov, potrebnih za izpolnjevanje določenega obrazca, lahko obrazec natisnete ali pa shranite kot .pdf dokument. Za tiskanje in pripravo .pdf dokumentov lahko uporabite ukazne gumbe ali pa izberete ustrezen ukaz v meniju. V skladu s pravilnikom mora biti vloga zapisana v formatu PDF/A-2b."]
[]
["POPRAVKI V VERZIJI 3.1"]
[]
["- odklenjeni vsi obrazci."]
[]
[]
["NADALJUJ NA VNOS PODATKOV"]

{"sheet":"VNOS PODATKOV","index":1,"n_rows":107,"n_cols":3,"rows_kept":107,"cut":false,"hidden":false,"merged":[[10,2,10,3]]}
[null,null,"VSEBINA DATOTEKE:"]
[null,null,"DOKAZILO O ZANESLJIVOSTI"]
[null,null,"obarvana polja delujejo kot povezave na ustrezne liste"]
[null,null,"PRIDOBIVANJE UPORABNEGA DOVOLJENJA"]
[]
[null,null,"5A - VODILNA MAPA DZO"]
[null,null,"5B - MAPA IZVAJALCA DZO"]
[]
[]
[]
["PROSTOR ZA OPOMBE ",null,"VNOS PODATKOV"]
[]
[null,"A","UDELEŽENCI PRI GRADITVI"]
[null,"A1","INVESTITOR"]
[null,"A1.1","INVESTITOR"]
[null,null,"INVESTITOR 1"]
[null,null,"ime in priimek ali naziv družbe"]
[null,null,"naslov ali sedež družbe"]
[null,null,"INVESTITOR 2"]
[null,null,"ime in priimek ali naziv družbe"]
[null,null,"naslov ali sedež družbe"]
[null,null,"INVESTITOR 3"]
[null,null,"ime in priimek ali naziv družbe"]
[null,null,"naslov ali sedež družbe"]
[null,"A2","PROJEKTANT"]
[null,"A2.1","PROJEKTANT "]
[null,null,"PODATKI O DRUŽBI"]
[null,null,"projektant (naziv družbe)"]
[null,null,"poslovni naslov družbe"]
[null,null,"odgovorna oseba projektanta"]
[null,"A2.6","IZDELOVALEC VODILNE MAPE DOKAZILA O ZANESLJIVOSTI"]
[null,null,"ime in priimek ali naziv družbe"]
[null,null,"naslov ali sedež družbe"]
[null,"A3","NADZORNIK"]
[null,"A3.1","NADZORNIK"]
[null,null,"imenovanje nadzornika ni obvezno v primeru gradnje nezahtevnega objekta če jo izvaja izvajalec, ki izpolnjuje pogoje za opravljanje dejavnosti gradbeništva (16. člen GZ-1)"]
[null,null,"imenovan je nadzornik gradnje"]
[null,null,"PODATKI O DRUŽBI"]
[null,null,"naziv družbe"]
[null,null,"poslovni naslov družbe"]
[null,null,"davčna številka za pravne subjekte"]
[null,null,"odgovorna oseba nadzornika"]
[null,null,"VODJA NADZORA"]
[null,null,"vodja nadzora"]
[null,null,"strokovna izobrazba"]
[null,null,"identifikacijska številka"]
[null,null,"POOBLAŠČENI STROKOVNJAK, KI SODELUJE PRI NADZORU"]
[null,null,"strokovni del nadzora"]
[null,null,"naziv družbe"]
[null,null,"poslovni naslov družbe"]
[null,null,"odgovorna oseba pooblaščenega strokovnjaka, ki sodeluje pri nadzoru"]
[null,null,"pooblaščeni strokovnjak, \nki sodeluje pri nadzoru"]
[null,null,"strokovna izobrazba"]
[null,null,"identifikacijska številka"]
[null,"A4","IZVAJALEC"]
[null,"A4.1","IZVAJALEC"]
[null,null,"navedi izvajalce, ki izpolnjujejo predpisane pogoje ali investitorja, v kolikor dela izvaja sam"]
[null,null,"prevzeta storitev (po pogodbi)"]
[null,null,"PODATKI O DRUŽBI"]
[null,null,"naziv družbe"]
[null,null,"poslovni naslov družbe"]
[null,null,"davčna številka za pravne subjekte"]
[null,null,"odgovorna oseba izvajalca"]
[null,null,"VODJA GRADNJE"]
[null,null,"vodja gradnje"]
[null,null,"strokovna izobrazba"]
[null,null,"identifikacijska številka"]
[null,null,"VODJA DEL"]
[null,null,"vodja del pri gradnji"]
[null,"B","PODATKI O PROJEKTNI DOKUMENTACIJI"]
[null,null,"podatki se vpišejo kadar dokumentacijo izdela projektant"]
[null,"B1","PROJEKTNA DOKUMENTACIJA"]
[null,null,"vrsta projektne dokumentacije"]
[null,null,"številka projekta"]
[null,null,"datum izdelave"]
[null,"C","PODATKI O GRADNJI"]
[null,"C1","OSNOVNI PODATKI"]
[null,"C1.1","OPIS GRADNJE"]
[null,null,"naziv gradnje"]
[null,null,"naziv gradnje se določi po namenu glavnega objekta"]
[null,"C3","POSEBNI PRIMERI"]
[null,"C3.9","PODATKI O IZDANEM KULTUROVARSTVENEM MNENJU"]
[null,null,"navedba organa"]
[null,null,"številka dovoljenja"]
[null,null,"datum dovoljenja"]
[null,"F","UPRAVNI POSTOPKI"]
[null,"F1","GRADBENO DOVOLJENJE"]
[null,"F1.2","PODATKI O IZDANEM GRADBENEM DOVOLJENJU"]
[null,null,"Navedejo se vsa pridobljena gradbena dovoljenja. Izpolni se za spremembo GD, prijavo pričetka del in pripravljalnih del ter za pridobivanje uporabnega dovoljenja."]
[null,null,"navedba organa"]
[null,null,"številka dovoljenja"]
[null,null,"datum dovoljenja"]
[null,null,"dokončnost"]
[null,null,"pravnomočnost"]
[null,"F1.3","PODATKI O SPREMEMBI GRADBENEGA DOVOLJENJA"]
[null,null,"Navedejo se vsa pridobljena gradbena dovoljenja. Izpolni se za spremembo GD, prijavo pričetka del in pripravljalnih del ter za pridobivanje uporabnega dovoljenja."]
[null,null,"navedba organa"]
[null,null,"številka dovoljenja"]
[null,null,"datum dovoljenja"]
[null,null,"dokončnost"]
[null,null,"pravnomočnost"]
[null,"F3","UPORABNO DOVOLJENJE"]
[null,"F3.2","DOKAZILO O ZANESLJIVOSTI OBJEKTA"]
[null,null,"navedejo se vse vsa dokazila o zanesljivosti objekta"]
[null,null,"številka dokazila o zanesljivosti objekta"]
[null,null,"datum izdelave"]
[null,null,"izdelovalec dokazila"]

{"sheet":"5A DZO VM","index":2,"n_rows":165,"n_cols":6,"rows_kept":165,"cut":false,"hidden":false,"merged":[[112,1,112,5],[82,2,82,5],[1,0,1,3],[4,0,4,5],[8,0,8,5],[18,0,18,5],[46,3,46,4],[47,3,47,4],[48,3,48,4],[49,3,49,4],[72,2,72,5],[46,0,46,1],[157,1,157,5],[158,1,158,5],[83,2,83,5],[87,2,87,5],[90,2,90,5],[93,2,93,5],[98,2,98,5],[149,1,149,5],[96,0,96,1],[98,0,98,1],[121,1,121,5],[130,1,130,5],[131,1,131,5],[139,1,139,5],[140,1,140,5],[148,1,148,5]]}
["PRILOGA 5A"]
["VODILNA MAPA \nDOKAZILA O ZANESLJIVOSTI"]
["STRAN 1: PODATKI O OBJEKTU IN DOKAZILU O ZANESLJIVOSTI"]
[]
[{"$f":"'VNOS PODATKOV'!C103","v":"DOKAZILO O ZANESLJIVOSTI OBJEKTA"}]
[{"$f":"'VNOS PODATKOV'!C105","v":"številka dokazila o zanesljivosti objekta"},null,{"$f":"'VNOS PODATKOV'!D105","v":0}]
[{"$f":"'VNOS PODATKOV'!C106","v":"datum izdelave"},null,{"$f":"'VNOS PODATKOV'!D106","v":"00:00:00"}]
[]
[{"$f":"'VNOS PODATKOV'!C76","v":"PODATKI O GRADNJI"}]
[{"$f":"'VNOS PODATKOV'!C79","v":"naziv gradnje"},null,{"$f":"'VNOS PODATKOV'!D79","v":0}]
[]
["OSNOVNI PODATKI O OBJEKTIH"]
["imenovanje objekta"]
["vrsta gradnje"]
["zahtevnost objekta"]
["klasifikacija po CC-SI"]
["po potrebi dodati rubrike"]
[]
[{"$f":"'VNOS PODATKOV'!C31","v":"IZDELOVALEC VODILNE MAPE DOKAZILA O ZANESLJIVOSTI"}]
[{"$f":"'VNOS PODATKOV'!C32","v":"ime in priimek ali naziv družbe"},null,{"$f":"'VNOS PODATKOV'!D32","v":0}]
[{"$f":"'VNOS PODATKOV'!C33","v":"naslov ali sedež družbe"},null,{"$f":"'VNOS PODATKOV'!D33","v":0}]
["STRAN 2: PODATKI O UDELEŽENCIH PRI GRADITVI"]
[]
[{"$f":"'VNOS PODATKOV'!C15","v":"INVESTITOR"}]
[{"$f":"'VNOS PODATKOV'!C16","v":"INVESTITOR 1"}]
[{"$f":"'VNOS PODATKOV'!C17","v":"ime in priimek ali naziv družbe"},null,{"$f":"'VNOS PODATKOV'!D17","v":0}]
[{"$f":"'VNOS PODATKOV'!C18","v":"naslov ali sedež družbe"},null,{"$f":"'VNOS PODATKOV'!D18","v":0}]
[{"$f":"'VNOS PODATKOV'!C19","v":"INVESTITOR 2"}]
[{"$f":"'VNOS PODATKOV'!C20","v":"ime in priimek ali naziv družbe"},null,{"$f":"'VNOS PODATKOV'!D20","v":0}]
[{"$f":"'VNOS PODATKOV'!C21","v":"naslov ali sedež družbe"},null,{"$f":"'VNOS PODATKOV'!D21","v":0}]
[{"$f":"'VNOS PODATKOV'!C22","v":"INVESTITOR 3"}]
[{"$f":"'VNOS PODATKOV'!C23","v":"ime in priimek ali naziv družbe"},null,{"$f":"'VNOS PODATKOV'!D23","v":0}]
[{"$f":"'VNOS PODATKOV'!C24","v":"naslov ali sedež družbe"},null,{"$f":"'VNOS PODATKOV'!D24","v":0}]
[]
[{"$f":"'VNOS PODATKOV'!C35","v":"NADZORNIK"}]
[{"$f":"'VNOS PODATKOV'!C39","v":"naziv družbe"},null,{"$f":"'VNOS PODATKOV'!D39","v":0}]
[{"$f":"'VNOS PODATKOV'!C40","v":"poslovni naslov družbe"},null,{"$f":"'VNOS PODATKOV'!D40","v":0}]
[{"$f":"'VNOS PODATKOV'!C42","v":"odgovorna oseba nadzornika"},null,{"$f":"'VNOS PODATKOV'!D42","v":0}]
[{"$f":"'VNOS PODATKOV'!C44","v":"vodja nadzora"},null,{"$f":"'VNOS PODATKOV'!D44","v":0}]
[{"$f":"'VNOS PODATKOV'!C45","v":"strokovna izobrazba"},null,{"$f":"'VNOS PODATKOV'!D45","v":0}]
[{"$f":"'VNOS PODATKOV'!C46","v":"identifikacijska številka"},null,{"$f":"'VNOS PODATKOV'!D46","v":0}]
[]
[{"$f":"'VNOS PODATKOV'!C47","v":"POOBLAŠČENI STROKOVNJAK, KI SODELUJE PRI NADZORU"}]
[{"$f":"'VNOS PODATKOV'!C48","v":"strokovni del nadzora"},null,{"$f":"'VNOS PODATKOV'!D48","v":0},{"$f":"'VNOS PODATKOV'!E48","v":0},{"$f":"'VNOS PODATKOV'!F48","v":0},{"$f":"'VNOS PODATKOV'!G48","v":0}]
[{"$f":"'VNOS PODATKOV'!C49","v":"naziv družbe"},null,{"$f":"'VNOS PODATKOV'!D49","v":0},{"$f":"'VNOS PODATKOV'!E49","v":0},{"$f":"'VNOS PODATKOV'!F49","v":0},{"$f":"'VNOS PODATKOV'!G49","v":0}]
[{"$f":"'VNOS PODATKOV'!C50","v":"poslovni naslov družbe"},null,{"$f":"'VNOS PODATKOV'!D50","v":0}]
[{"$f":"'VNOS PODATKOV'!C51","v":"odgovorna oseba pooblaščenega strokovnjaka, ki sodeluje pri nadzoru"},null,{"$f":"'VNOS PODATKOV'!D51","v":0}]
[{"$f":"'VNOS PODATKOV'!C52","v":"pooblaščeni strokovnjak, \nki sodeluje pri nadzoru"},null,{"$f":"'VNOS PODATKOV'!D52","v":0}]
[{"$f":"'VNOS PODATKOV'!C53","v":"strokovna izobrazba"},null,{"$f":"'VNOS PODATKOV'!D53","v":0}]
[{"$f":"'VNOS PODATKOV'!C54","v":"identifikacijska številka"},null,{"$f":"'VNOS PODATKOV'!D54","v":0}]
["po potrebi dodati rubrike"]
[]
[{"$f":"'VNOS PODATKOV'!C56","v":"IZVAJALEC"}]
[{"$f":"'VNOS PODATKOV'!C58","v":"prevzeta storitev (po pogodbi)"},null,{"$f":"'VNOS PODATKOV'!D58","v":0}]
[{"$f":"'VNOS PODATKOV'!C60","v":"naziv družbe"},null,{"$f":"'VNOS PODATKOV'!D60","v":0}]
[{"$f":"'VNOS PODATKOV'!C61","v":"poslovni naslov družbe"},null,{"$f":"'VNOS PODATKOV'!D61","v":0}]
[{"$f":"'VNOS PODATKOV'!C63","v":"odgovorna oseba izvajalca"},null,{"$f":"'VNOS PODATKOV'!D63","v":0}]
[{"$f":"'VNOS PODATKOV'!C65","v":"vodja gradnje"},null,{"$f":"'VNOS PODATKOV'!D65","v":0}]
[{"$f":"'VNOS PODATKOV'!C66","v":"strokovna izobrazba"},null,{"$f":"'VNOS PODATKOV'!D66","v":0}]
[{"$f":"'VNOS PODATKOV'!C67","v":"identifikacijska številka"},null,{"$f":"'VNOS PODATKOV'!D67","v":0}]
["po potrebi dodati rubrike"]
[]
["STRAN 3: IZJAVA NADZORNIKA IN VODJE NADZORA"]
[]
[{"$f":"'VNOS PODATKOV'!C35","v":"NADZORNIK"}]
[{"$f":"'VNOS PODATKOV'!C39","v":"naziv družbe"},null,{"$f":"'VNOS PODATKOV'!D39","v":0}]
[{"$f":"'VNOS PODATKOV'!C40","v":"poslovni naslov družbe"},null,{"$f":"'VNOS PODATKOV'!D40","v":0}]
[{"$f":"'VNOS PODATKOV'!C42","v":"odgovorna oseba nadzornika"},null,{"$f":"'VNOS PODATKOV'!D42","v":0}]
[{"$f":"'VNOS PODATKOV'!C44","v":"vodja nadzora"},null,{"$f":"IF('VNOS PODATKOV'!D44=\"\",\"\",(CONCATENATE('VNOS PODATKOV'!D44,\", \",'VNOS PODATKOV'!D45)))","v":""}]
[]
[null,null,"IZJAVLJAVA:"]
[]
[null,null,"- da je gradnja objekta končana in da je izvedena minimalna komunalna oskrba objekta;\n- da je predloženo dokazilo o zanesljivosti objekta izdelano v skladu s predpisi;\n- da so predložena vsa posamezna dokazila izvajalcev, ki vključno z dokazili iz vodilne mape dokazujejo, da objekt glede na namen, vrsto, velikost, zmogljivost, predvidene vplive in druge značilnosti v celoti izpolnjuje bistvene in druge zahteve, in\n- da je objekt skladen z izdanim gradbenim dovoljenjem oziroma dopustnimi manjšimi odstopanji:\n"]
[]
[{"$f":"'VNOS PODATKOV'!C91","v":"številka dovoljenja"},null,{"$f":" 'VNOS PODATKOV'!D91","v":0}]
["z dne",null,{"$f":"'VNOS PODATKOV'!D92","v":"00:00:00"}]
[]
[null,null,"in spremembo gradbenega dovoljenja:"]
[]
[{"$f":"'VNOS PODATKOV'!C98","v":"številka dovoljenja"},null,{"$f":"'VNOS PODATKOV'!D98","v":0}]
["z dne",null,{"$f":"'VNOS PODATKOV'!D99","v":"00:00:00"}]
[]
[null,false,"Objekt je varovan na podlagi predpisov s področja varstva kulturne dediščine. \nIzvedene rešitve ne dosegajo v celoti predpisanih bistvenih in drugih zahtev, kar izhaja iz mnenja oziroma pogojev pristojnega mnenjedajalca za področje kulturne dediščine:"]
[]
["številka mnenja",null,{"$f":"'VNOS PODATKOV'!D84","v":0}]
["z dne",null,{"$f":"'VNOS PODATKOV'!D85","v":"00:00:00"}]
[]
[null,null,"Z odstopanji niso neposredno ogroženi varnost objekta, življenje in zdravje ljudi, sosednje nepremičnine ali okolje."]
[]
[{"$f":"'VNOS PODATKOV'!C42","v":"odgovorna oseba nadzornika"},null,{"$f":"'VNOS PODATKOV'!D42","v":0}]
["podpis odgovorne osebe nadzornika"]
[{"$f":"'VNOS PODATKOV'!C44","v":"vodja nadzora"},null,{"$f":"'VNOS PODATKOV'!D44","v":0}]
[{"$f":"'VNOS PODATKOV'!C46","v":"identifikacijska številka"},null,{"$f":"'VNOS PODATKOV'!D46","v":0}]
["podpis vodje nadzora"]
["PODPISI POOBLAŠČENIH STROKOVNJAKOV POSAMEZNIH STROK ZA NADZOR, ČE SO IMENOVANI"]
["stroka",null,{"$f":"C44","v":0}]
["pooblaščeni strokovnjak posamezne stroke (če je imenovan)",null,{"$f":"C48","v":0}]
["identifikacijska številka",null,{"$f":"C50","v":0}]
["podpis pooblaščenega strokovnjaka posamezne stroke"]
["po potrebi dodati rubrike"]
["STRAN 4: TABELARIČNO KAZALO VODILNE MAPE"]
["po potrebi izpustiti ali dodati vrstice"]
[]
["A.","PODATKI O PROJEKTNI DOKUMENTACIJI"]
[null,"tabelarični seznam projektne dokumentacije DGD, PZI, PID z oštevilčenjem"]
["zap. \nšt.","sestavni del projekta (vodilni načrt, načrt ...)","faza projekta (DGD, PZI, PID)","št. projekta","datum","projektant (naziv družbe)"]
[1]
[2]
[3]
[4]
[5]
[]
["B.","PODATKI O GRADBENIH DOVOLJENJIH, PROJEKTNIH POGOJIH IN K DGD PRIDOBLJENIH MNENJIH"]
[null,"tabelarični seznam projektnih pogojev, mnenj in gradbenih dovoljenj z oštevilčenjem, kot si sledijo v prilogah"]
["zap. \nšt.","odločba, mnenje, projektni pogoji","organ izdaje odločbe oziroma mnenja","datum","pogoji glede gradnje","izpolnjevanje pogojev"]
[1]
[2]
[3]
[4]
[5]
[]
["C.","PODATKI O POGODBAH, SKLENJENIH MED INVESTITORJEM IN IZVAJALCI TER NADZORNIKOM"]
[null,"tabelarični seznam pogodb, naročilnic, nabavnih nalogov z oštevilčenjem, kot si sledijo v prilogah"]
["zap. \nšt.","predmet pogodbe","izvajalec / nadzornik",null,null,"datum"]
[1]
[2]
[3]
[4]
[5]
[]
["D.","IZKAZI, POROČILA, ZAPISNIKI PO PODROČNIH PREDPISIH"]
[null,"tabelarični seznam posameznih dokazil, kot so zapisnik o zakoličbi, izkaz požarne varnosti stavbe, izkaz energijskih lastnosti stavbe, izkaz zaščite pred hrupom v stavbah, poročilo o nastalih gradbenih odpadkih in o ravnanju z njimi, zapisnik o strokovno tehničnem pregledu žičnic, zapisnik o pregledu, preskusu in meritvah vgrajenih električnih inštalacij oz. vgrajenega sistema zaščite pred strelo, poročilo in potrdilo o tehničnem preizkusu zaklonišča z oštevilčenjem, kot si sledijo v prilogah, če niso predmet dokazila izvajalca"]
["zap. \nšt.","ime dokazila oz. na kaj se dokazilo nanaša","izdajatelj",null,"št. dokazila","datum"]
[1]
[2]
[3]
[4]
[5]
[]
["E.","OSTALE IZVEDENE MERITVE IN PREGLEDI"]
[null,"tabelarični seznam ostalih posameznih dokazil o preizkusih inštalacij, priključkov in naprav, prevzemih izvršenih del, z oštevilčenjem, kot si sledijo v prilogah"]
["zap. \nšt.","ime dokazila oz. na kaj se dokazilo nanaša","izdajatelj",null,"št. dokazila","datum"]
[1]
[2]
[3]
[4]
[5]
[]
["F.","MERITVE IN PREGLEDI, IZVEDENI V ČASU POSKUSNEGA OBRATOVANJA"]
[null,"tabelarični seznam dokazil, izvedenih po tehničnem pregledu, in rezultati prvih meritev obratovalnega monitoringa v primeru poskusnega obratovanja z oštevilčenjem, kot si sledijo v prilogah"]
["zap. \nšt.","ime dokazila oz. na kaj se dokazilo nanaša","izdajatelj",null,"št. dokazila","datum"]
[1]
[2]
[3]
[4]
[5]
[]
["G.","NAVODILA ZA OBRATOVANJE IN VZDRŽEVANJE OBJEKTA"]
[null,"tabelarični seznam vseh posameznih slikovnih gradiv, tehničnih prikazov in besedil v obliki jamstev, potrdil, seznamov, shem in podobnih sestavin, ki določajo pravila za obratovanje vgrajenih inštalacij, naprav in opreme ter obvezne (minimalne) časovne razmike in pogoje rednih pregledov ter roke in obseg občasnih pregledov, obseg vzdrževalnih del, s katerimi se zagotavlja, da bo objekt v času uporabe izpolnjeval bistvene zahteve, prejetih s strani vseh izvajalcev, kot si sledijo v prilogah; pri stavbah v etažni lasti je treba obseg vzdrževalnih del prikazati ločeno za posamezne dele stavbe in zunanje (skupne) površine, zahteve za organizacijske ukrepe z vidika požarne varnosti in druge zahteve (npr. obratovalni dnevnik), če so za obratovanje objekta določene"]
["zap. \nšt.","ime navodila oz. na kaj se navodilo nanaša",null,"izdajatelj","časovni razmiki rednih in občasnih pregledov \nter obseg vzdrževalnih del"]
[1]
[2]
[3]
[4]
[5]

{"sheet":"5B DZO","index":3,"n_rows":109,"n_cols":7,"rows_kept":109,"cut":false,"hidden":false,"merged":[[3,0,3,6],[15,3,15,6],[38,1,38,6],[47,1,47,6],[101,1,101,6],[48,1,48,6],[56,1,56,6],[57,1,57,6],[65,1,65,6],[66,1,66,6],[74,1,74,6],[75,1,75,6],[83,1,83,6],[84,1,84,6],[92,1,92,6],[93,1,93,6],[30,1,30,6],[31,0,31,1],[31,2,31,6],[32,2,32,6],[108,4,108,6],[102,1,102,6],[103,4,103,6],[104,4,104,6],[105,4,105,6],[106,4,106,6],[107,4,107,6]]}
["PRILOGA 5B"]
["DOKAZILO IZVAJALCA"]
["STRAN 1: IZJAVA IZVAJALCA IN VODJE GRADNJE"]
["IZVAJALEC IN VODJA GRADNJE"]
[{"$f":"'VNOS PODATKOV'!C60","v":"naziv družbe"},null,null,{"$f":"'VNOS PODATKOV'!D60:E60","v":0}]
[{"$f":"'VNOS PODATKOV'!C61","v":"poslovni naslov družbe"},null,null,{"$f":"'VNOS PODATKOV'!D61:E61","v":0}]
[{"$f":"'VNOS PODATKOV'!C63","v":"odgovorna oseba izvajalca"},null,null,{"$f":"'VNOS PODATKOV'!D63","v":0}]
[{"$f":"'VNOS PODATKOV'!C65","v":"vodja gradnje"},null,null,{"$f":"'VNOS PODATKOV'!D65:E65","v":0}]
[]
[]
["s predloženim dokazilom št.",null,null,{"$f":"'VNOS PODATKOV'!D105","v":0}]
["datum izdelave",null,null,{"$f":"'VNOS PODATKOV'!D106","v":"00:00:00"}]
[]
[null,null,null,"IZJAVLJAVA:"]
[]
[null,null,null,"- da so dela v okviru prevzete storitve dokončana;\n- da je predloženo dokazilo v okviru prevzete storitve izdelano v celoti;\n- da vgrajeni gradbeni proizvodi, naprave in materiali izpolnjujejo predpise;\n- da so bili pri gradnji upoštevani ukrepi, s katerimi bodo preprečeni oziroma na najmanjšo mero omejeni negativni vplivi, ki jih utegne povzročiti objekt oziroma njegova uporaba;\n- da predloženo dokazilo dokazuje, da objekt glede na namen, vrsto, velikost, zmogljivost, predvidene vplive in druge značilnosti, v okviru prevzete storitve izpolnjuje bistvene in druge zahteve in\n- da so dela izvedena v skladu s projektno dokumentacijo za izvedbo gradnje:"]
[]
[{"$f":"'VNOS PODATKOV'!C74","v":"številka projekta"},null,null,{"$f":"'VNOS PODATKOV'!D74","v":0}]
[{"$f":"'VNOS PODATKOV'!C75","v":"datum izdelave"},null,null,{"$f":"'VNOS PODATKOV'!D75","v":0}]
[{"$f":"'VNOS PODATKOV'!C28","v":"projektant (naziv družbe)"},null,null,{"$f":"'VNOS PODATKOV'!D28","v":0}]
[]
[]
[{"$f":"'VNOS PODATKOV'!C63","v":"odgovorna oseba izvajalca"},null,null,{"$f":"'VNOS PODATKOV'!D63","v":0}]
["podpis odgovorne osebe izvajalca"]
[{"$f":"'VNOS PODATKOV'!C65","v":"vodja gradnje"},null,null,{"$f":"IF('VNOS PODATKOV'!D65=\"\",\"\",(CONCATENATE('VNOS PODATKOV'!D65,\", \",'VNOS PODATKOV'!D66)))","v":""}]
[{"$f":"'VNOS PODATKOV'!C67","v":"identifikacijska številka"},null,null,{"$f":"'VNOS PODATKOV'!D67","v":0}]
["podpis vodje gradnje"]
[]
[]
["STRAN 2: OSTALI UDELEŽENI POSAMZNIKI IZVAJALCA PRI VODENJU GRADNJE, ČE SO BILI DOLOČENI"]
[]
["ime in priimek, identifikacijska številka"]
["obseg vodenja gradnje"]
["po potrebi dodati rubrike"]
[]
["STRAN 2: TABELARIČNO KAZALO DOKAZIL"]
["po potrebi izpustiti ali dodati vrstice"]
[]
[null,"PODATKI O POGODBAH, SKLENJENIH MED INVESTITORJEM IN IZVAJALCEM"]
[null,"tabelarični seznam sklenjenih pogodb z oštevilčenjem, kot si sledijo v mapi s prilogami"]
["zap. \nšt.","pogodba",null,"vrsta del",null,null,"datum"]
[1]
[2]
[3]
[4]
[5]
[]
["I.","GRADBENA DELA"]
[null,"tabelarični seznam posameznih dokazil glede gradnje stanovanjskih in nestanovanjskih stavb, gradnje inženirskih objektov cest in železnic z mostovi, predori, objektov oskrbne infrastrukture za tekočine, pline, elektriko, telekomunikacije, drugih inženirskih objektov z vodnimi objekti in drugimi objekti nizke gradnje, z oštevilčenjem, kot si sledijo v prilogah"]
["zap. \nšt.","ime dokazila oz. \nna kaj se dokazilo nanaša",null,"izdajatelj",null,"št. dokazila","datum"]
[1]
[2]
[3]
[4]
[5]
[]
["II.","PRIPRAVLJALNA DELA NA GRADBIŠČU"]
[null,"tabelarični seznam posameznih dokazil glede odstranitve objektov, zemeljskih pripravljalnih del, testnih vrtanj in sondiranj z oštevilčenjem, kot si sledijo v prilogah"]
["zap. \nšt.","ime dokazila oz. \nna kaj se dokazilo nanaša",null,"izdajatelj",null,"št. dokazila","datum"]
[1]
[2]
[3]
[4]
[5]
[]
["III.","INŠTALACIJE"]
[null,"tabelarični seznam posameznih dokazil glede inštalacij električnih napeljav in naprav, vodovodnih, plinskih in ogrevalnih napeljav in naprav ter drugih inštalacij pri gradnji z oštevilčenjem, kot si sledijo v prilogah"]
["zap. \nšt.","ime dokazila oz. \nna kaj se dokazilo nanaša",null,"izdajatelj",null,"št. dokazila","datum"]
[1]
[2]
[3]
[4]
[5]
[]
["IV.","ZAKLJUČNA GRADBENA DELA"]
[null,"tabelarični seznam posameznih dokazil glede fasaderskih in štukaterskih del, vgrajevanja stavbnega pohištva, oblaganja tal in sten, steklarskih in pleskarskih del in drugih zaključnih gradbenih del, z oštevilčenjem, kot si sledijo v prilogah"]
["zap. \nšt.","ime dokazila oz. \nna kaj se dokazilo nanaša",null,"izdajatelj",null,"št. dokazila","datum"]
[1]
[2]
[3]
[4]
[5]
[]
["V.","KROVSTVO IN DRUGA SPECIALIZIRANA GRADBENA DELA"]
[null,"tabelarični seznam posameznih dokazil glede postavljanja ostrešij in krovskih del ter drugih specializiranih gradbenih del z oštevilčenjem, kot si sledijo v prilogah"]
["zap. \nšt.","ime dokazila oz. \nna kaj se dokazilo nanaša",null,"izdajatelj",null,"št. dokazila","datum"]
[1]
[2]
[3]
[4]
[5]
[]
["VI.","IZKAZI, POROČILA, ZAPISNIKI PO PODROČNIH PREDPISIH"]
[null,"tabelarični seznam posameznih dokazil, kot so zapisnik o zakoličbi, izkaz požarne varnosti stavbe, izkaz energijskih lastnosti stavbe, izkaz zaščite pred hrupom v stavbah, poročilo o nastalih gradbenih odpadkih in o ravnanju z njimi, zapisnik o strokovno tehničnem pregledu žičnic, zapisnik o pregledu, preskusu in meritvah vgrajenih električnih inštalacij oz. vgrajenega sistema zaščite pred strelo, poročilo in potrdilo o tehničnem preizkusu zaklonišča z oštevilčenjem, kot si sledijo v prilogah"]
["zap. \nšt.","ime dokazila oz. \nna kaj se dokazilo nanaša",null,"izdajatelj",null,"št. dokazila","datum"]
[1]
[2]
[3]
[4]
[5]
[]
["VII.","NAVODILA ZA OBRATOVANJE IN VZDRŽEVANJE OBJEKTA"]
[null,"tabelarični seznam posameznih slikovnih gradiv, tehničnih prikazov in besedil v obliki jamstev, potrdil, seznamov, shem in podobnih sestavin, ki določajo pravila za obratovanje, vgrajenih inštalacij, naprav in opreme ter obvezne (minimalne) časovne razmike in pogoje rednih pregledov ter roke in obseg občasnih pregledov, obseg vzdrževalnih del, s katerimi se zagotavlja, da bo objekt v času uporabe izpolnjeval bistvene zahteve, ki so predmet vgradnje v okviru prevzete storitve (brez prilog)"]
["zap. \nšt.","ime navodila oz. na kaj se navodilo nanaša",null,"izdajatelj","časovni razmiki rednih in občasnih pregledov \nter obseg vzdrževalnih del"]
[1]
[2]
[3]
[4]
[5]